Department Family,Entity,Date,Expense Type,Expense Area,Supplier,Transaction Number,Amount,Description
Ministry of justice,CAFCASS,19/02/2024,Contact rechargeable,HQ,Action for Children,1138736,"28,448.00",Planning Together for Children North
Ministry of justice,CAFCASS,19/02/2024,Contact rechargeable,HQ,Action for Children,1138742,"44,060.00",Planning Together for Children South West
Ministry of justice,CAFCASS,19/02/2024,Contact rechargeable,HQ,Action for Children,1138743,"36,182.10",Planning Together for Children South East
Ministry of justice,CAFCASS,19/02/2024,Contact rechargeable,HQ,Action for Children,1138747,"29,278.00",Planning Together for Children East
Ministry of justice,CAFCASS,06/02/2024,System licence fees,HQ,Bytes Software Services Ltd,1138131,"26,066.51",Microsoft Azure
Ministry of justice,CAFCASS,21/02/2024,Partnership Commissioned CS,HQ,Child Action Northwest,1138839,"45,068.42",Improving Child and Family Arrangements CANW North
Ministry of justice,CAFCASS,21/02/2024,Partnership Commissioned CS,HQ,Child Action Northwest,1138840,"34,529.78",Improving Child and Family Arrangements CANW West
Ministry of justice,CAFCASS,21/02/2024,Partnership Commissioned CS,HQ,Children's Links (ICFA),1138842,"35,400.00",Improving Child and Family Arrangements Children's Links
Ministry of justice,CAFCASS,01/02/2024,Agency Practitioners,Op Service Areas,Community Resourcing Ltd t/a Retinue Sol,1138003,"80,054.72",Agency Staff
Ministry of justice,CAFCASS,01/02/2024,Agency Practitioners,HQ,Community Resourcing Ltd t/a Retinue Sol,1138003,"3,188.64",Agency Staff
Ministry of justice,CAFCASS,01/02/2024,Temp Business Support Staff,HQ,Community Resourcing Ltd t/a Retinue Sol,1138003,"5,511.39",Temp Business Support Staff
Ministry of justice,CAFCASS,01/02/2024,Temp Business Support Staff,Op Service Areas,Community Resourcing Ltd t/a Retinue Sol,1138003,"1,352.77",Temp Business Support Staff
Ministry of justice,CAFCASS,14/02/2024,Agency Practitioners,Op Service Areas,Community Resourcing Ltd t/a Retinue Sol,1138467,"73,131.42",Agency Staff
Ministry of justice,CAFCASS,14/02/2024,Agency Practitioners,HQ,Community Resourcing Ltd t/a Retinue Sol,1138467,"8,730.20",Agency Staff
Ministry of justice,CAFCASS,14/02/2024,Temp Business Support Staff,Op Service Areas,Community Resourcing Ltd t/a Retinue Sol,1138467,"1,238.65",Temp Business Support Staff
Ministry of justice,CAFCASS,14/02/2024,Temp Business Support Staff,HQ,Community Resourcing Ltd t/a Retinue Sol,1138467,"12,931.75",Temp Business Support Staff
Ministry of justice,CAFCASS,27/02/2024,Agency Practitioners,HQ,Community Resourcing Ltd t/a Retinue Sol,1139042,"3,629.70",Agency Staff
Ministry of justice,CAFCASS,27/02/2024,Agency Practitioners,Op Service Areas,Community Resourcing Ltd t/a Retinue Sol,1139042,"68,768.97",Agency Staff
Ministry of justice,CAFCASS,27/02/2024,Temp Business Support Staff,HQ,Community Resourcing Ltd t/a Retinue Sol,1139042,"7,104.87",Temp Business Support Staff
Ministry of justice,CAFCASS,27/02/2024,Temp Business Support Staff,Op Service Areas,Community Resourcing Ltd t/a Retinue Sol,1139042,"1,301.72",Temp Business Support Staff
Ministry of justice,CAFCASS,28/02/2024,Agency Practitioners,HQ,Community Resourcing Ltd t/a Retinue Sol,1139093,"3,629.70",Agency Staff
Ministry of justice,CAFCASS,28/02/2024,Agency Practitioners,Op Service Areas,Community Resourcing Ltd t/a Retinue Sol,1139093,"65,838.53",Agency Staff
Ministry of justice,CAFCASS,28/02/2024,Temp Business Support Staff,HQ,Community Resourcing Ltd t/a Retinue Sol,1139093,"5,167.49",Temp Business Support Staff
Ministry of justice,CAFCASS,09/02/2024,T&S - UK (Non-Taxable),HQ,Corporate Travel Mngmnt North t/a CTM,1138363,286.70,Corporate Travel Management Taxi Jan 24
Ministry of justice,CAFCASS,09/02/2024,T&S - UK (Non-Taxable),Op Service Areas,Corporate Travel Mngmnt North t/a CTM,1138363,213.90,Corporate Travel Management Taxi Jan 24
Ministry of justice,CAFCASS,09/02/2024,T&S - UK (Non-Taxable),HQ,Corporate Travel Mngmnt North t/a CTM,1138363,"13,089.47",Corporate Travel Management Jan 24
Ministry of justice,CAFCASS,09/02/2024,T&S - UK (Non-Taxable),Op Service Areas,Corporate Travel Mngmnt North t/a CTM,1138363,"19,266.79",Corporate Travel Management Jan 24
Ministry of justice,CAFCASS,09/02/2024,T&S - UK (Non-Taxable) hotel,Op Service Areas,Corporate Travel Mngmnt North t/a CTM,1138363,"6,614.78",Corporate Travel Management hotel Jan 24
Ministry of justice,CAFCASS,09/02/2024,T&S - UK (Non-Taxable) hotel,HQ,Corporate Travel Mngmnt North t/a CTM,1138363,"6,194.18",Corporate Travel Management hotel Jan 24
Ministry of justice,CAFCASS,02/02/2024,Output VAT,HQ,HM Revenue & Customs 774 1613 27,1138027,"53,104.76",774161327
Ministry of justice,CAFCASS,06/02/2024,Telecom Equipment < 2.5k,HQ,Jigsaw24,1138144,"38,430.00",Telephony Services
Ministry of justice,CAFCASS,20/02/2024,Little Fish contracted costs,HQ,Little Fish (UK) Limited,1138832,"186,086.69",Technology services
Ministry of justice,CAFCASS,22/02/2024,Rates,HQ,MOJ - HMCTS,1138928,"4,725.82",Exeter Rates
Ministry of justice,CAFCASS,22/02/2024,Rent,HQ,MOJ - HMCTS,1138928,"31,350.40",Exeter Rent
Ministry of justice,CAFCASS,22/02/2024,Service Charge,HQ,MOJ - HMCTS,1138928,"66,014.62",Exeter Serv Chg
Ministry of justice,CAFCASS,22/02/2024,Rates,HQ,MOJ - HMCTS,1138931,"7,991.71",Stevenage Rates
Ministry of justice,CAFCASS,22/02/2024,Rent,HQ,MOJ - HMCTS,1138931,"4,328.97",Stevenage Rent
Ministry of justice,CAFCASS,22/02/2024,Service Charge,HQ,MOJ - HMCTS,1138931,"13,479.99",Stevenage Serv Chg
Ministry of justice,CAFCASS,06/02/2024,Other IT contracted costs,HQ,Specialist Computer Centres Plc,1138128,"40,470.68",Laptops & Sleeves
Ministry of justice,CAFCASS,16/02/2024,Partnership Commissioned CS,HQ,Swan Family Centres Limited,1138685,"32,812.50",Improving Child and Family Arrangements Swan Family SE
Ministry of justice,CAFCASS,27/02/2024,Building Fit Out & Enhancement,HQ,The Barnes Group Ltd T/a Bower Fuller,1139134,"32,115.90",DL - London - Fit-out - Final phase
Ministry of justice,CAFCASS,07/02/2024,Rent,HQ,University of Warwick Science Park,1138208,"36,263.80",National Business Centre Rent
Ministry of justice,CAFCASS,07/02/2024,Service Charge,HQ,University of Warwick Science Park,1138208,"6,029.53",National Business Centre Serv Chg
Ministry of justice,CAFCASS,08/02/2024,Version 1,HQ,Version 1 Solutions Limited,1138216,"150,000.00",Technology services
Ministry of justice,CAFCASS,08/02/2024,Version 1 Development,HQ,Version 1 Solutions Limited,1138224,"33,600.00",Technology services
